Cogmind - Beta 14 @@@ ROGUE MODE // 2024.11.19 @ 04:50:36 Player: KURIIRI Result: Self-destructed Performance ------------- Evolutions (0) 0 Regions Visited (4) 800 Robots Destroyed (39) 195 Value Destroyed (1055) 1055 Prototype IDs (24) 480 Alien Tech Used (0) 0 Bonus (205) 205 TOTAL SCORE: 2735 Bonus ------- Follower Combat Kills 60 Aligned with FarCom 300 Friendly Fire -155 Cogmind --------- Core Integrity 84/250 Matter 300/300 Energy 250/250 System Corruption 0% Temperature Cool (0) Movement Rolling (115) Ox1 Location -9/Mines Parts ------- > --- POWER (1) -------- Ion Engine > --- PROPULSION (2) --- Light Treads Compact Wheel > --- UTILITY (2) ------ Improved Heat Sink Medium Storage Unit > --- WEAPON (2) ------- Beam Cannon Beam Cannon > --- INVENTORY (10) --- Nuclear Core Light Nuclear Core Light Fission Core Light Treads Experimental Sensor Array Hacking Suite Hacking Suite Latent Energy Streamer Beam Cannon Grenade Launcher Peak State ------------ > --- POWER ------------ (None) > --- PROPULSION ------- Light Treads Compact Wheel > --- UTILITY ---------- Medium Storage Unit Sensor Drone Bay > --- WEAPON ----------- Beam Cannon Beam Cannon > --- INVENTORY -------- Ion Engine Light Nuclear Core Light Treads Experimental Sensor Array Terrain Scanner Weapon Shielding Hacking Suite Hacking Suite Beam Cannon Grenade Launcher [Rating: 15] Favorites ----------- Power Ion Engine Engine Ion Engine Propulsion Light Treads Treads Light Treads Wheel Compact Wheel Utility Improved Heat Sink Device Improved Heat Sink Storage Medium Storage Unit Weapon Beam Cannon Energy Gun Small Laser Energy Cannon Beam Cannon Ballistic Gun Light Assault Rifle Build | -11 -10 -10 -10 -9 ------- Run | Yrd Mat Min Exi Min Slots Evolved . | . . . . . Power . | . . . . . Propulsion . | . . . . . Utility . | . . . . . Weapon . | . . . . . Parts Attached 18 | 7 6 5 . . Power 2 | 1 . 1 . . Engine 2 | 1 . 1 . . Core . | . . . . . Reactor . | . . . . . Propulsion 4 | 2 2 . . . Treads 3 | 2 1 . . . Leg . | . . . . . Wheel 1 | . 1 . . . Hover . | . . . . . Flight . | . . . . . Utility 7 | 1 2 4 . . Device 5 | . 1 4 . . Storage 2 | 1 1 . . . Processor . | . . . . . Hackware . | . . . . . Protection . | . . . . . Artifact . | . . . . . Weapon 5 | 3 2 . . . Energy Gun 1 | 1 . . . . Energy Cannon 2 | . 2 . . . Ballistic Gun 2 | 2 . . . . Ballistic Cannon . | . . . . . Launcher . | . . . . . Special Weapon . | . . . . . Impact Weapon . | . . . . . Slashing Weapon . | . . . . . Piercing Weapon . | . . . . . Special Melee Weapon . | . . . . . Unidentified Prototypes 1 | . . 1 . . Parts Lost 2 | . 1 1 . . Power 1 | . . 1 . . Propulsion 1 | . 1 . . . Utility . | . . . . . Weapon . | . . . . . Highest Loss Streak 1 | . 1 1 . . To Critical Strikes . | . . . . . Average Slot Usage (%) 96 | . 94 99 100 100 Engine 13 | . 14 13 14 14 Treads 19 | . 24 14 14 14 Wheel 8 | . 1 14 14 14 Device 12 | . 10 14 14 14 Storage 14 | . 14 14 14 14 Energy Cannon 24 | . 21 28 28 28 Ballistic Gun 3 | . 6 . . . Peak Build Rating 15 | 6 10 15 12 12 Average Rating 9 | 4 8 10 11 12 On Entrance 7 | . 6 10 11 12 Naked Turns . | . . . . . Heaviest Build 30 | 12 22 30 22 22 Greatest Support 40 | 40 40 16 16 16 Greatest Overweight (x) 5 | . 5 1 1 1 Average Overweight (x) . | . . 1 1 1 Largest Inventory Capacity 10 | 8 10 10 10 10 Average Capacity 8 | 6 8 10 10 10 Most Carried 10 | 1 8 10 10 10 Average Carried 7 | . 5 8 9 10 Final Capacity 10 | 8 10 10 10 10 Final Carried 10 | 1 8 9 10 10 Class Distribution -------------------- 100% | Mutant Dominant Class ---------------- Mutant | -10/Materials Mutant | -10/Mines Mutant | -10/Exiles Mutant | -9/Mines Resources | -11 -10 -10 -10 -9 ----------- Run | Yrd Mat Min Exi Min Matter Collected 436 | 238 138 60 . . Remotely . | . . . . . Salvage Created 1392 | . 1057 335 . . Parts 85 | . 72 13 . . Haulers Intercepted 2 | . 2 . . . Recyclers Shooed . | . . . . . Parts Field Recycled . | . . . . . Retrieved Matter . | . . . . . Parts Self-Destructed . | . . . . . Prevented . | . . . . . Kills | -11 -10 -10 -10 -9 ------- Run | Yrd Mat Min Exi Min Combat Hostiles Destroyed 29 | . 22 7 . . Guns 5 | . 5 . . . Cannons 23 | . 17 6 . . Classes Destroyed 10 | . 7 3 . . Worker 1 | . 1 . . . Builder 1 | . . 1 . . Tunneler 1 | . . 1 . . Hauler 2 | . 2 . . . Mechanic 1 | . 1 . . . Operator 2 | . 2 . . . Watcher 3 | . 3 . . . Swarmer 3 | . 3 . . . Grunt 25 | . 19 6 . . Assembled 1 | . . 1 . . Best Kill Streak 6 | . 6 3 . . Combat Bots Only 5 | . 5 3 . . Max Kills in Single Turn 2 | . 2 1 . . Gunslinging . | . . . . . Exploded . | . . . . . Melee . | . . . . . Uniques/NPCs Destroyed . | . . . . . Combat | -11 -10 -10 -10 -9 -------- Run | Yrd Mat Min Exi Min Hostile Shots Fired 107 | . 88 19 . . Missed 32 | . 27 5 . . Damage Taken 816 | . 644 172 . . Core 166 | . 156 10 . . Absorbed by Shields . | . . . . . Regen/Repaired (Parts) 116 | . 116 . . . Core Remaining (%) 100 | 100 . . . . Volleys Fired 115 | . 89 25 . 1 Largest 2 | . 2 2 . 2 Hottest 120 | . 120 120 . 120 Shots Fired 230 | . 178 50 . 2 Gun 64 | . 64 . . . Cannon 166 | . 114 50 . 2 Launcher . | . . . . . Special . | . . . . . Kinetic 64 | . 64 . . . Thermal 166 | . 114 50 . 2 Explosive . | . . . . . Electromagnetic . | . . . . . Robot Hit Streak 10 | . 10 9 . 4 Robot Miss Streak 7 | . 7 4 . 1 Penetration Max . | . . . . . Secondary Targets 2 | . 2 . . . Max Gunslinging Chain 1 | . 1 . . . Shots Hit Robots 134 | . 104 29 . 1 Core Hits 49 | . 37 12 . . Critical Kills 3 | . . 3 . . Critical Parts Destroyed . | . . . . . Critical Strikes 3 | . . 3 . . Meltdown 3 | . . 3 . . Melee Attacks . | . . . . . Impact . | . . . . . Slashing . | . . . . . Piercing . | . . . . . Sneak Attacks . | . . . . . Combat Hostiles . | . . . . . Follow-up Attacks . | . . . . . Damage Inflicted 2145 | 5 1547 558 . 35 Guns 281 | . 281 . . . Cannons 1855 | . 1262 558 . 35 Explosions . | . . . . . Melee . | . . . . . Ramming 9 | 5 4 . . . Kinetic 281 | . 281 . . . Thermal 1855 | . 1262 558 . 35 Explosive . | . . . . . Electromagnetic . | . . . . . Impact . | . . . . . Slashing . | . . . . . Piercing . | . . . . . Highest Corruption . | . . . . . Average Corruption . | . . . . . Corruption Purged . | . . . . . Corruption Blocked . | . . . . . Overload Shots . | . . . . . Overflow Damage 26 | . 26 . . . Projectiles 26 | . 26 . . . Explosions . | . . . . . Melee . | . . . . . Knockbacks . | . . . . . Impact . | . . . . . Kinetic . | . . . . . Secondary . | . . . . . Self-Inflicted Damage . | . . . . . Shots . | . . . . . Rammed 3 | 2 1 . . . Targets Rammed 4 | 2 2 . . . Kicked . | . . . . . Crushed 1 | . 1 . . . Highest Temperature 153 | . 153 114 . 18 Average Temperature 39 | . 43 30 . 12 Received Heat Transfer 357 | . 258 99 . . Siege Activations . | . . . . . Robots Corrupted . | . . . . . Combat Hostiles . | . . . . . Parts Fried . | . . . . . Impact Corruptions . | . . . . . Robots Melted 3 | . . 3 . . Combat Hostiles 1 | . . 1 . . Parts Melted 6 | . 3 3 . . Heat Transferred 3922 | . 2664 1184 . 74 Parts Sabotaged . | . . . . . Parts Stolen . | . . . . . Parts Stripped . | . . . . . Power Chain Reactions . | . . . . . Alert | -11 -10 -10 -10 -9 ------- Run | Yrd Mat Min Exi Min Peak Influence 358 | . 358 253 . 58 Initial 123 | . . 123 . . Average 136 | . 191 100 . 33 Maximum Alert Level 1 | . 1 1 . . Low Security (%) 66 | 100 56 70 . 100 Level 1 33 | . 43 29 . . Level 2 . | . . . . . Level 3 . | . . . . . Level 4 . | . . . . . Level 5 . | . . . . . High Security . | . . . . . Max Security . | . . . . . Squads Dispatched 7 | . 7 . . . Investigation 4 | . 4 . . . Extermination . | . . . . . Reinforcement 3 | . 3 . . . Assault . | . . . . . Garrison . | . . . . . Intercept . | . . . . . Searches Triggered . | . . . . . Construction Impeded . | . . . . . Haulers Reinforced . | . . . . . Active Scanning Responses . | . . . . . Cargo Convoy Interrupts . | . . . . . Stealth | -11 -10 -10 -10 -9 --------- Run | Yrd Mat Min Exi Min Distress Signals . | . . . . . Communications Jammed . | . . . . . Distress Signals . | . . . . . Times Spotted 42 | . 34 6 . 2 Peak Tracking Total 4 | . 4 2 . 2 Tactical Retreats . | . . . . . Traps | -11 -10 -10 -10 -9 ------- Run | Yrd Mat Min Exi Min Traps Triggered 1 | . 1 . . . Indirectly . | . . . . . Trap Hack Attempts . | . . . . . Triggered . | . . . . . Disarmed . | . . . . . Reprogrammed 3 | . 3 . . . Reused 1 | . 1 . . . Traps Extracted . | . . . . . Installed . | . . . . . Triggered 1 | . 1 . . . Machines | -11 -10 -10 -10 -9 ---------- Run | Yrd Mat Min Exi Min Machines Disabled . | . . . . . Max in Single Turn . | . . . . . Machines Repaired . | . . . . . Machines Dismantled . | . . . . . Machines Sabotaged . | . . . . . Overloaded Fab Kills . | . . . . . Hacking | -11 -10 -10 -10 -9 --------- Run | Yrd Mat Min Exi Min Machines Accessed 11 | . 8 1 2 . Terminals 5 | . 5 . . . Fabricators . | . . . . . Repair Stations 1 | . 1 . . . Recycling Units 2 | . 2 . . . Scanalyzers . | . . . . . Garrison Access . | . . . . . Total Hacks 27 | . 24 1 2 . Successful 17 | . 14 1 2 . Failed 10 | . 10 . . . Catastrophic 1 | . 1 . . . Database Lockouts . | . . . . . Manual 12 | . 11 . 1 . Terminals 20 | . 20 . . . Fabricators . | . . . . . Repair Stations 2 | . 2 . . . Recycling Units 2 | . 2 . . . Scanalyzers . | . . . . . Garrison Access . | . . . . . Terminal Hacks 8 | . 5 1 2 . Record 1 | . . . 1 . Robot Analysis 2 | . 2 . . . Open Door 1 | . . 1 . . Locate Traps 1 | . 1 . . . Reprogram Traps 1 | . 1 . . . Zone Layout 1 | . 1 . . . Derelict Proto ID Bank 1 | . . . 1 . Fabricator Hacks . | . . . . . Repair Station Hacks 2 | . 2 . . . Scan Component 1 | . 1 . . . Repair 1 | . 1 . . . Recycling Unit Hacks . | . . . . . Scanalyzer . | . . . . . Garrison Access Hacks . | . . . . . Unauthorized Hacks 7 | . 7 . . . Terminals 5 | . 5 . . . Track 1 | . 1 . . . Botnet 3 | . 3 . . . Operators 1 | . 1 . . . Fabricators . | . . . . . Repair Stations . | . . . . . Recycling Units 2 | . 2 . . . Tunnel 2 | . 2 . . . Scanalyzers . | . . . . . Garrison Access . | . . . . . Data Cores Recovered . | . . . . . Used . | . . . . . Hacking Detections 6 | . 6 . . . Full Trace Events 3 | . 3 . . . Feedback Events . | . . . . . Feedback Blocked . | . . . . . Robot Schematics Acquired . | . . . . . Robots Built . | . . . . . Authchips . | . . . . . Time . | . . . . . Total Robot Build Rating . | . . . . . Part Schematics Acquired . | . . . . . Parts Built . | . . . . . Authchips . | . . . . . Time . | . . . . . Total Part Build Rating . | . . . . . Parts Repaired 1 | . 1 . . . Time 26 | . 26 . . . Parts Recycled . | . . . . . Recycled Matter . | . . . . . Retrieved Matter . | . . . . . Retrieved Components . | . . . . . Parts Scanalyzed . | . . . . . Part Schematics Acquired . | . . . . . Parts Damaged . | . . . . . Bothacking | -11 -10 -10 -10 -9 ------------ Run | Yrd Mat Min Exi Min Used RIF Installer . | . . . . . Robots Hacked . | . . . . . Non-combat . | . . . . . Combat . | . . . . . Robot Hacks Applied . | . . . . . Relay Couplers Released . | . . . . . Fabnet Peak Effective % . | . . . . . Robots Rewired . | . . . . . Allies Hacked . | . . . . . Hacks Repelled . | . . . . . Allies | -11 -10 -10 -10 -9 -------- Run | Yrd Mat Min Exi Min Total Allies 3 | . . . . 3 Largest Group 3 | . . . . 3 Highest-Rated Group 40 | . . . . 40 Highest-Rated Ally 16 | . . . . 16 Total Orders . | . . . . . Ally Attacks 12 | . . . . 12 Total Damage 115 | . . . . 115 Kills 2 | . . . . 2 Allies Corrupted . | . . . . . Allies Melted 1 | . . 1 . . Intel | -11 -10 -10 -10 -9 ------- Run | Yrd Mat Min Exi Min Robot Analysis Total 2 | . 2 . . . Derelict Logs Recovered 3 | . . 2 . 1 Drone Launches 20 | . . 20 . . Drone Recoveries . | . . . . . Exploration | -11 -10 -10 -10 -9 ------------- Run | Yrd Mat Min Exi Min Turns Passed 3393 | 107 1553 1252 243 238 Spaces Moved 1639 | 62 676 489 208 204 Core 9 | 6 3 . . . Treads 608 | 56 552 . . . Legs . | . . . . . Wheels 1022 | . 121 489 208 204 Hover . | . . . . . Flight . | . . . . . Fastest Speed 50 | 50 115 115 115 115 Average Speed 131 | 149 152 115 115 115 Slowest Speed 300 | 160 300 115 115 115 Overloaded Moves . | . . . . . Propulsion Burnouts . | . . . . . Robots Hopped . | . . . . . Cave-ins Triggered . | . . . . . Exploration Rate (%) 57 | 5 96 73 59 52 Regions Visited 4 Branch Regions 3 Pre-discovered Areas 3 | . 2 . 1 . Known Exits Taken . | . . . . . Unknown Exits Taken 4 | 1 1 1 1 . Scrap Searched 2 | . . 1 . 1 Spaces Dug . | . . . . . Terrain Destroyed . | . . . . . Melee . | . . . . . Projectile . | . . . . . AOE . | . . . . . Terrain Rammed . | . . . . . Walls Destroyed . | . . . . . Machines Disabled . | . . . . . Actions | -11 -10 -10 -10 -9 --------- Run | Yrd Mat Min Exi Min Total 2651 | 72 1032 1130 212 205 Wait 848 | . 247 601 . . Move 1635 | 61 675 488 207 204 Hop . | . . . . . Pick Up 16 | 1 9 3 3 . Fast Attach 14 | 7 4 3 . . Attach 2 | . 1 1 . . Detach . | . . . . . Swap 2 | . 1 1 . . Drop 12 | 1 4 5 2 . Fire 115 | . 89 25 . 1 Melee . | . . . . . Ram . | . . . . . Kick . | . . . . . Crush 4 | 2 2 . . . Escape Stasis . | . . . . . Rewire 3 | . . 3 . . Trap . | . . . . . Miscellaneous . | . . . . . Route ------- -11/Scrapyard -10/Materials (discovered 5 exits: [*Mat x3] / *Min x2) -10/Mines (discovered 4 exits: [*Mat x2] / *Exi / Sub) -10/Exiles -9/Mines History --------- Turn | Location | Event 8 | -11/Scrapyard | Discovered new exit (range 14) 108 | -11/Scrapyard | Entered Materials 318 | -10/Materials | Build established: Mutant 626 | -10/Materials | Discovered new exit (range 15) 677 | -10/Materials | Discovered new exit (range 16) 1013 | -10/Materials | Discovered new exit (range 7) 1137 | -10/Materials | Core integrity fell below 50% 1351 | -10/Materials | Discovered new exit (range 6) 1436 | -10/Materials | Discovered new exit (range 16) 1507 | -10/Materials | Repaired Lgt. Treads 1661 | -10/Materials | Entered Mines 1699 | -10/Mines | Assembled infested the area 1701 | -10/Mines | Met a Derelict bent on vengeance 2294 | -10/Mines | Found a damaged Exp. Sensor Array with a note attached 2296 | -10/Mines | Found Prototype Device 2369 | -10/Mines | Discovered new exit (range 8) 2472 | -10/Mines | Deemed a non-threat by the Exiles lab entrance 2472 | -10/Mines | Discovered new exit (range 5) 2494 | -10/Mines | Learned Materials trap positions 2630 | -10/Mines | Found DCF Scrap (11 items) 2728 | -10/Mines | Discovered new exit (range 13) 2732 | -10/Mines | Identified exit to Subcaves 2749 | -10/Mines | Found the Drone Emporium 2754 | -10/Mines | Found Prototype Device 2754 | -10/Mines | Identified Sensor Drone Bay 2913 | -10/Mines | Entered Exiles 2950 | -10/Exiles | Met 8R-AWN 2968 | -10/Exiles | Met EX-HEX 3000 | -10/Exiles | Met EX-BIN 3013 | -10/Exiles | Aligned with FarCom system 3014 | -10/Exiles | Given EX-Vault access code 3040 | -10/Exiles | Opened EX-Vault 3046 | -10/Exiles | Found Latent Energy Streamer 3069 | -10/Exiles | Warned to stay clear of 0b10 Research branches 3105 | -10/Exiles | Met EX-DEC 3108 | -10/Exiles | Learned location of Zion (-7) 3141 | -10/Exiles | Discovered new exit (range 14) 3156 | -10/Exiles | Left Exiles lab with Latent Energy Streamer 3156 | -10/Exiles | Entered Mines 3156 | -9/Mines | Assisted by bots powering up and referring to "LRC-V3" 3167 | -9/Mines | Learned 4 Materials zone layouts 3266 | -9/Mines | Found a hidden stash of uninstalled traps 3394 | -9/Mines | Self-destructed Last Messages --------------- command?" 03156_ Mercenary 2a: "Hello LRC-V3. What is your command?" 03156_ Trooper 2b: "Hello LRC-V3. What is your command?" 03167_ Acquired derelict log, extracted data. Data stored: Materials zone layouts (x4). 03193_ T-07 Excavator is excavating. 03254_ G-34 Mercenary destroyed. 03261_ G-47 Trooper destroyed. 03266_ A stash of uninstalled traps is collected here! 03266_ R-06 Scavenger collects Sml. Laser. 03269_ R-06 Scavenger collects Heat Sink. 03273_ R-06 Scavenger collects Lgt. Nuclear Core. 03316_ Searching scrap... 03316_ Found Plasma Cutter. 03316_ Found 40 Matter. 03369_ K-01 Serf collects debris. Map ----- +----------------------------------------------------+ | | | | | | | | | | | | | | | | | | | | | | | | | | | | | | | | | | | | | | | | | | | | | | | ????????????????????????????????????????? | | ????????####################????????????? | | ???????## @ #????????????? | | ???????# #???????###### | | ???????# ####### #???????# """ | | ???????## ##?????# #???????# """ | | ????????## ####?????## #???????# """ | | ?????????# ####???????## #???????# | | ?????????# #??????????# ####?#### | | ?????????# #??????????# #?# | | ?????????# #?????????## ### ### ## | | ?????????# #????????## ##?# ## | | ?????????# #???????## #??# ####### ### | | ?????????# #??????## ##??# #?????# #?? | | ?????????# ######## ###???# #?????# #?? | | ?????????# ##?????# #?????# ### | | ?????????# #??????# #?????# | | ?????????###### ##????# #?????#### | | ??????????????## #???# #????????# | | ???????????????###### #??# ????????# | | ?????????????????????# ##??##????????# | | ?????????????????????? ###??????????# | | ?????????????????????? #????# ##### | | ?????????????? ??????? #???# | | ??????????????? ??????# ???####### | | ??????????????? ??????# ?????????# | | ???????????????# ????## #???????### | +----------------------------------------------------+ Best States ------------- Heat Dissipation 39 Energy Generation 10 Energy Capacity 250 Matter Stores 300 Matter Capacity 300 Sight Range 16 Terrain Scan Density 10 Evasion (%) 40 Recoil Reduction 2 Item Schematics ----------------- None Robot Schematics ------------------ None Fabricated ------------ Nothing Alien Tech Used ----------------- None Achievements -------------- None Challenges ------------ None Game ------ Seed HypervelocityAntigravChip Manual? 0 Play Time 00:15:24 Cumulative 183.1 hours Start 2024.11.19 @ 04:34:44 End 2024.11.19 @ 04:50:36 Sessions 1 Manual Loads 0 Difficulty Rogue Special Mode None Game No. 115 Rogue 79 Adventurer 36 Explorer 0 Win Type - Total 3 Types 2/0/0/1/0/0/0/0/0 Lore% 56 Gallery% 65 Achievement% 57 Wizard Run 0 Options --------- Layout 1 ASCII 0 Keyboard 0 Movement Numpad Keybinds 0 Fullscreen 1 Font 48/Smallcaps Map View 50x35 Zoom Use 0% Tactical HUD 1 Map Filters NONE Filters NONE Steam 1 RUN: 414aa8bb-ddca-4d23-82fe-3c5ed8c5d343